Workbook

Sheet Budget (hidden)
A1: Northview Elementary PTA Budget for 2008-2009
A4: EXPENSES | E4: REVENUES
B5: SCHOOL DONATIONS | F5: FUNDRAISERS
B6: Presentation and the Arts | F6: Fall Fundraiser (Innisbrook) | G6: 15000
B7: Climb Theatre (Character Counts) | C7: 1130 | F7: Carnival | G7: 5000
B8: Author, Art & Music Residency | C8: 5000 | F8: Culver's Night | G8: 1000
B9: Motivational Promotions | C9: 740 | F9: Book Fair | G9: 1500
B10: Technology | F10: Kemps | G10: 300
B11: Accelerated Reader (Primary) | C11: 1221 | F11: Box Tops | G11: 1500
B12: Accelerated Math | C12: 751 | F12: Campbell Soup Labels | G12: NA
B13: Software (new computers) | C13: 1700 | F13: IMAX | G13: 500
B14: Tumblebook library.com (ebooks) | C14: 200 | F14: Fundraisers Subtotal | G14: =SUM(G6:G13) -> 24800
B15: Classroom Computer Upgrade | C15: 3728
B16: SmartBoards/Projectors (per classroom) | C16: 5322 | F16: OTHER REVENUES
B17: Character Education | C17: 400 | F17: Interest Income | G17: 150
B18: Phy Ed (Equipment) | C18: 200 | F18: Donations | G18: 0
B19: Recess (Student Play Equipment) | C19: 500 | F19: Other Subtotal | G19: =SUM(G17:G18) -> 150
B20: Family Math Nights & Math Resources | C20: 1000
B21: School Donations Subtotal | C21: =SUM(C6:C20) -> 21892 | F21: Total Estimated Revenues | G21: =G14+G19 -> 24950
B23: ACTIVITIES
B24: PTA Meetings | C24: 0
B25: Ice Cream Social | C25: 400
B26: Apparel | C26: 0
B27: Activity Nights
B28: K & 1st | C28: 300
B29: 2nd | C29: 300 | F29: Beginning Cash Balance | G29: 12800.13
B30: 3rd & 4th | C30: 300 | F30: Add: Estimated Revenues | G30: =G21 -> 24950
B31: Twins Game Transportation (5th grade) | C31: 400 | F31: Estimated Cash Available for '08/'09 | G31: =G29+G30 -> 37750.13
B32: DARE Reception | C32: 150 | F32: Less: Estimated Expenses | G32: =C58 -> 26867
B33: Class Party Supplies (bowls, cups, etc.) | C33: 75 | F33: Estimated Year End Cash Balance | G33: =G31-G32 -> 10883.13
B34: Popcorn | C34: 300
B35: Picture Person | C35: 350
B36: Track & Field | C36: 150
B37: School Tool Box | C37: 0
B38: Staff Appreciation
B39: First Staff Meeting Breakfast | C39: 150
B40: Fall Conference Dinner | C40: 25
B41: Winter Conference Dinner | C41: 25
B42: Teachers Luncheon | C42: 150
B43: Staff Appreciation Week | C43: 400
B44: Birthday Treats and Notes | C44: 50
B45: Student Directory | C45: 400
B46: Northview Garden | C46: 100
B47: Miscellaneous | C47: 50
B48: Activities Subtotal | C48: =SUM(C24:C47) -> 4075
B50: BUDGET EXPENSES
B51: Supplies | C51: 250
B52: Bank Fees/Charges | C52: 100
B53: Memorials | C53: 150
B54: Scholarships | C54: 400
B55: Membership | C55: 0
B56: Expenses Subtotal | C56: =SUM(C51:C55) -> 900
B58: Total Estimated Expenses | C58: =C21+C48+C56 -> 26867

Sheet February 2015
A1: Northview Elementary PTO Budget Report -May 2015 | M1: Page 1
E4: Activity Since July 1, 2014 | I4: YEAR-TO-DATE ACTIVITY | M4: OVER/UNDER
A5: REVENUES | C5: Income | E5: Income | F5: Expense | G5: Net | I5: Income | J5: Expense | K5: Net | M5: BUDGET | O5: O/U Budget
B6: Fundraisers
B7: Fall and Spring Fundraiser (The Chip Shoppe) | C7: 15000 | E7: =1306.5+1871.5+1235+2055.5+666+1467+1709.5+138+1908.5+133+2373.5+2010+1126.5+1124+1103+2253+11 -> 22491.5 | F7: =9174.71+77+9 -> 9260.71 | G7: =E7-F7 -> 13230.79 | I7: =E7 -> 22491.5 | J7: 9260.71 | K7: =G7 -> 13230.79 | M7: =K7-C7 -> -1769.21 | O7: =K7-C7 -> -1769.21
B8: Square One Art | C8: 400 | E8: =558.46+37 -> 595.46 | F8: 0 | G8: =E8-F8 -> 595.46 | I8: 595.46 | J8: 0 | K8: 595.46 | O8: =K8-C8 -> 195.46
B9: Family Events
B10: Carnival | C10: 5000 | E10: =6883+37.56+4165 -> 11085.56 | F10: =130.65+113.98+41.5+150+53.89+300.8+89.4+41.98+352+885.6+561.6+506.8+106.76+135.08+800 -> 4270.04 | G10: =E10-F10 -> 6815.52 | I10: =E10 -> 11085.56 | J10: 4270.04 | K10: 6815.52 | M10: =K10-C10 -> 1815.52 | O10: =K10-C10 -> 1815.52
B11: Valley Natural Foods | C11: 1500 | E11: =312.5+937.5+312.5+737.5+625 -> 2925 | F11: 0 | G11: =E11-F11 -> 2925 | I11: 2925 | J11: 0 | K11: 2925 | M11: =-J11 -> 0 | O11: =K11-C11 -> 1425
B12: Barnes & Noble Book Fair | C12: 0 | E12: 544.99 | F12: 0 | G12: =E12-F12 -> 544.99 | I12: 544.99 | J12: 0 | K12: =I12-J12 -> 544.99 | O12: =K12-C12 -> 544.99
B13: Color Run | C13: 0 | E13: =690+2538+698.5 -> 3926.5 | F13: 0 | G13: =E13-F13 -> 3926.5 | I13: 3926.5 | J13: 0 | K13: 3926.5 | O13: =K13-C13 -> 3926.5
B14: Northview Apparel | C14: 200 | E14: =570+930+120+110+390 -> 2120 | F14: 1603.5 | G14: =E14-F14 -> 516.5 | I14: =E14 -> 2120 | J14: =F14 -> 1603.5 | K14: =G14 -> 516.5 | O14: =K14-C14 -> 316.5
B15: Collections
B16: Box Tops for Education | C16: 2500 | E16: =1769+1026.2 -> 2795.2 | F16: =200+16.45 -> 216.45 | G16: =E16-F16 -> 2578.75 | I16: =E16 -> 2795.2 | J16: 216.45 | K16: 2578.75 | M16: =K16-C16 -> 78.75 | O16: =K16-C16 -> 78.75
B17: Labels for Education | C17: N/A | E17: 0 | F17: 0 | G17: =E17-F17 -> 0 | I17: 0 | J17: 0 | K17: 0 | M17: N/A | O17: 0
B18: Company Programs
B19: Scholastic Book Fair | C19: 0 | E19: =300+300 -> 600 | F19: =300+300 -> 600 | G19: =E19-F19 -> 0 | I19: =E19 -> 600 | J19: 600 | K19: 0 | M19: 0 | O19: =K19-C19 -> 0
B20: Gertens | C20: 100 | E20: =82.5+57.75+35.75+88 -> 264 | F20: 0 | G20: =E20-F20 -> 264 | I20: 264 | J20: 0 | K20: 264 | M20: =K20 -> 264 | O20: =K20-C20 -> 164
B21: Food Perspectives | C21: 100 | E21: =70+70 -> 140 | F21: 0 | G21: =E21-F21 -> 140 | I21: 140 | J21: 0 | K21: 140 | M21: =K21-C21 -> 40 | O21: =K21-C21 -> 40
B22: Other Revenues
B23: Interest Income | C23: 2 | E23: =0.15+0.14+0.13+0.21+0.28+0.21+0.13+0.12+0.14+0.12+0.13+0.15 -> 1.91 | F23: 0 | G23: =E23-F23 -> 1.91 | I23: =E23 -> 1.91 | J23: 0 | K23: 1.91 | M23: =K23-C23 -> -0.09 | O23: =K23-C23 -> -0.09
B24: Volunteer Match Programs | C24: 500 | E24: 50 | F24: 0 | G24: =E24-F24 -> 50 | I24: 50 | J24: 0 | K24: 50 | M24: =K24-C24 -> -450 | O24: =K24-C24 -> -450
B25: Donations | C25: 0 | E25: =470+100+150+110+50+219.9+90 -> 1189.9 | F25: 0 | G25: =E25-F25 -> 1189.9 | I25: 1189.9 | J25: 0 | K25: 1189.9 | M25: =K25-C25 -> 1189.9 | O25: =K25-C25 -> 1189.9
B26: Miscelanneous (misplaced bank deposit receipts) | C26: 0 | E26: =698.5+90 -> 788.5 | F26: 0 | G26: =E26-F26 -> 788.5 | I26: 788.5 | J26: 0 | K26: 788.5 | O26: =K26 -> 788.5
B27: Total Revenues | C27: =SUM(C7:C26) -> 25302 | E27: =SUM(E7:E25) -> 48730.02 | F27: =SUM(F7:F25) -> 15950.7 | G27: =SUM(G7:G25) -> 32779.32 | I27: =SUM(I7:I25) -> 48730.02 | J27: =SUM(J7:J25) -> 15950.7 | K27: =SUM(K7:K25) -> 32779.32 | M27: =SUM(M7:M25) -> 1168.87 | O27: =SUM(O7:O25) -> 7477.32
A29: SCHOOL SUPPORT & EXPENSES | M29: OVER/UNDER
C30: Budget | E30: Income | F30: Expense | G30: Net | I30: Income | J30: Expense | K30: Net | M30: BUDGET | O30: O/U Budget
B31: Cultural Residency
B32: Art, Music, and Author Residency | C32: 2000 | E32: 0 | F32: 2556.86 | G32: =F32-E32 -> 2556.86 | I32: =E32 -> 0 | J32: =F32 -> 2556.86 | K32: 2556.86 | M32: =-(C32-K32) -> 556.86 | O32: =K32-C32 -> 556.86
B33: Technology
B34: Video Camera | C34: 1000 | E34: 0 | F34: 0 | G34: =E34-F34 -> 0 | I34: =E34 -> 0 | J34: =F34 -> 0 | K34: 0 | O34: =C34-K34 -> 1000
B35: Classroom Technology - 5 Projectors and Installation | C35: 3000 | E35: 0 | F35: 2858 | G35: =F35-E35 -> 2858 | I35: =E35 -> 0 | J35: 2858 | K35: 2858 | M35: =-C35+K35 -> -142 | O35: =C35-K35 -> 142
B36: Curriculum Enrichment
B37: Science Related Fieldtrip/Workshop | C37: 2500 | E37: 0 | F37: 0 | G37: =E37-F37 -> 0 | I37: =E37 -> 0 | J37: =F37 -> 0 | K37: 0 | M37: -2500 | O37: =C37-K37 -> 2500
B38: Science, Technology, Engineering & Math Resources | C38: 1500 | E38: 0 | F38: 0 | G38: =E38-F38 -> 0 | I38: =E38 -> 0 | J38: 0 | K38: 0 | M38: -1500 | O38: =C38-K38 -> 1500
B39: IXL Site License - Digital Literacy & Math (K-5) | C39: 2250 | E39: 0 | F39: 2050 | G39: =F39-E39 -> 2050 | I39: =E39 -> 0 | J39: 2050 | K39: 2050 | M39: -200 | O39: =C39-K39 -> 200
B40: Safari Montage (K-5) ` Video System | C40: 2000 | E40: 0 | F40: 0 | G40: =E40-F40 -> 0 | I40: =E40 -> 0 | J40: 0 | K40: 0 | M40: -2000 | O40: =C40-K40 -> 2000
B41: Education City - Math, Reading & Science (K-5) | C41: 3100 | E41: 0 | F41: 0 | G41: =E41-F41 -> 0 | I41: =E41 -> 0 | J41: 0 | K41: 0 | M41: -3100 | O41: =C41-K41 -> 3100
B42: Literacy
B43: Accelerated Reader (Renaissance Learning) | C43: 2850 | E43: 0 | F43: 1819 | G43: =F43-E43 -> 1819 | I43: =E43 -> 0 | J43: =F43 -> 1819 | K43: 1819 | M43: -1031 | O43: =C43-K43 -> 1031
B44: Tumblebook Cloiud Junior | C44: 300 | E44: 0 | F44: 279.7 | G44: =F44-E44 -> 279.7 | I44: =E44 -> 0 | J44: 279.7 | K44: 279.7 | M44: -20.3 | O44: =C44-K44 -> 20.3
A45: SCHOOL SUPPORT & EXPENSES, continued | E45: =E4 -> Activity Since July 1, 2014 | I45: YEAR-TO-DATE ACTIVITY
C46: Budget | E46: Income | F46: Expense | G46: Net | I46: Income | J46: Expense | K46: Net | M46: BUDGET | O46: O/U Budget
B47: Classroom Support
B48: Instructional Supplies - Magnets K-2 | C48: 3000 | E48: 0 | F48: 2899.73 | G48: =F48-E48 -> 2899.73 | I48: =E48 -> 0 | J48: =F48 -> 2899.73 | K48: 2899.73 | O48: =C48-K48 -> 100.27
B49: HMR Leveled Reading Books | C49: 2000 | E49: 0 | F49: 2100.42 | G49: 2100.42 | I49: 0 | J49: 2100.42 | K49: 2100.42 | O49: -100.42
B50: Art Supplies | C50: 1800 | E50: 0 | F50: =584.65+130.6 -> 715.25 | G50: 715.25 | I50: =E50 -> 0 | J50: 715.25 | K50: 715.25 | O50: 1084.75
B51: Thank You Voucher (45@$50) | C51: 2250 | E51: 0 | F51: =45.98+45.74+50+47.49+47.45+50+50+46.25+49.85+50+50+50+48.2+50+39.95+40.88+50+50+49.95+42.83+200+41.99+50+50+50+50+50+47.79+50+48.95 -> 1593.3 | G51: 1593.3 | I51: =E51 -> 0 | J51: 1593.3 | K51: 1593.3 | O51: 656.7
B52: Deep Portage (1/2 of bus fee - we would pay for this each year) | C52: 1200 | E52: 0 | F52: 1200 | G52: 1200 | I52: =E52 -> 0 | J52: 1200 | K52: 1200 | O52: 0
B53: Playground Equipment | C53: 500 | E53: 0 | F53: =36.21 -> 36.21 | G53: 36.21 | I53: 0 | J53: 36.21 | K53: 36.21 | O53: 463.79
B54: Classroom/Staff Requests | C54: 1500 | E54: 0 | F54: =91.79+337.05+119+20.94+150+1350+84.46 -> 2153.24 | G54: 2153.24 | I54: 0 | J54: 2153.24 | K54: 2153.24 | O54: -653.24
B55: School-wide Behavior Plan Incentives | C55: 500 | E55: 0 | F55: =45+41+101+42+22+18+45 -> 314 | G55: 314 | I55: 0 | J55: =F55 -> 314 | K55: 314 | O55: 186
B56: Social Worker Supplies | C56: 300 | E56: 0 | F56: 0 | G56: 0 | I56: 0 | J56: =F56 -> 0 | K56: 0 | O56: 300
B57: Healthy Snacks / Nurse's Office / Handwashing Posters | C57: 300 | E57: 0 | F57: =69.62+11.78+220.49+19.37 -> 321.26 | G57: 321.26 | I57: 0 | J57: =F57 -> 321.26 | K57: 321.26 | O57: -21.26
B58: Ikea Stools (6-8 Stools Per Classroom) | C58: 1000 | E58: 0 | F58: =165.94+128.47+85.65+37.47+235.53+214.12 -> 867.18 | G58: =F58 -> 867.18 | I58: 0 | J58: =F58 -> 867.18 | K58: 867.18 | O58: 132.82
B59: School Support Subtotal | C59: =SUM(C32:C58) -> 34850 | E59: =SUM(E32:E58) -> 0 | F59: =SUM(F32:F58) -> 21764.15 | G59: =F59-E59 -> 21764.15 | I59: =SUM(I32:I58) -> 0 | J59: =SUM(J32:J58) -> 21764.15 | K59: =SUM(K32:K58) -> 21764.15 | M59: =SUM(M32:M58) -> -9936.44 | O59: =SUM(O32:O58) -> 14199.57
B61: Activities
B62: PTO Scholarship | C62: 550 | E62: 0 | F62: 550 | G62: =F62-E62 -> 550 | I62: =E62 -> 0 | J62: =F62 -> 550 | K62: =G62 -> 550 | O62: =C62-K62 -> 0
B63: Popcorn | C63: 400 | E63: 0 | F63: =180.5 -> 180.5 | G63: 180.5 | I63: 0 | J63: 180.5 | K63: 180.5 | M63: =-C63+K63 -> -219.5 | O63: 219.5
B64: Ice Cream Social (Fall Open House) | C64: 500 | E64: 0 | F64: 500 | G64: 500 | I64: 0 | J64: 500 | K64: 500 | M64: 0 | O64: 0
B65: Art Adventure / MIA Art History | C65: 275 | E65: 0 | F65: =48+84 -> 132 | G65: 132 | I65: 0 | J65: 132 | K65: 132 | M65: -143 | O65: 143
B66: Milk for Students on Testing Days | C66: 200 | E66: 0 | F66: 64.44 | G66: 64.44 | I66: 0 | J66: 64.44 | K66: 64.44 | M66: -135.56 | O66: 135.56
B67: School Patrol Summer Camp | C67: 180 | E67: 0 | F67: 50 | G67: 50 | I67: 0 | J67: 50 | K67: 50 | M67: -130 | O67: 130
B68: Fifth Grade Reception / Sendoff ($100 PTO funds, $300 donation) | C68: =100+300 -> 400 | E68: 0 | F68: =26.76+312 -> 338.76 | G68: 338.76 | I68: 0 | J68: 338.76 | K68: 338.76 | M68: -61.24 | O68: 61.24
B69: Track & Field Day Treats | C69: 100 | E69: 0 | F69: 0 | G69: 0 | I69: 0 | J69: 0 | K69: 0 | M69: -100 | O69: 100
B70: Northview Garden | C70: 100 | E70: 0 | F70: 0 | G70: 0 | I70: 0 | J70: 0 | K70: 0 | M70: -100 | O70: 100
B71: Fall Playground Night | C71: 100 | E71: 0 | F71: 0 | G71: 0 | I71: 0 | J71: 0 | K71: 0 | O71: 100
B72: School Directory | C72: 300 | E72: 0 | F72: 281.91 | G72: =F72-E72 -> 281.91 | I72: 0 | J72: 281.91 | K72: 281.91 | O72: 18.09
B73: Class Party Supplies | C73: 75 | E73: 0 | F73: 0 | G73: 0 | I73: 0 | J73: 0 | K73: 0 | M73: =-C73+K73 -> -75 | O73: 75
B74: Staff Appreciation
B75: Staff Appreciation Week | C75: 250 | E75: 0 | F75: 288 | G75: =F75-E75 -> 288 | I75: =E75 -> 0 | J75: 288 | K75: =J75 -> 288 | M75: =-C75+K75 -> 38 | O75: =C75-K75 -> -38
B76: Fall Staff Welcome | C76: 100 | E76: 0 | F76: 93.16 | G76: 93.16 | I76: 0 | J76: 93.16 | K76: =J76 -> 93.16 | M76: =-C76+K76 -> -6.84 | O76: =C76-K76 -> 6.84
B77: Winter Conference Meals | C77: 75 | E77: 0 | F77: 0 | G77: 0 | I77: 0 | J77: 0 | K77: =J77 -> 0 | M77: =-C77+K77 -> -75 | O77: =C77-K77 -> 75
B78: Fall Conference Meals | C78: 75 | E78: 0 | F78: 0 | G78: 0 | I78: 0 | J78: 0 | K78: =J78 -> 0 | M78: 0 | O78: =C78-K78 -> 75
B79: Birthday Treats & Notes | C79: 40 | E79: 0 | F79: 0 | G79: 0 | I79: 0 | J79: 0 | K79: =J79 -> 0 | M79: =-C79+K79 -> -40 | O79: =C79-K79 -> 40
B80: Activities & Appreciation Subtotal | C80: =SUM(C62:C79) -> 3720 | E80: =SUM(E62:E79) -> 0 | F80: =SUM(F62:F79) -> 2478.77 | G80: 2478.77 | I80: 0 | J80: 2478.77 | K80: 2478.77 | M80: =SUM(M63:M79) -> -1048.14 | O80: =SUM(O62:O79) -> 1241.23
B81: SCHOOL SUPPORT & EXPENSES, continued | E81: Activity Since July 1, 2014 | I81: YEAR-TO-DATE ACTIVITY
C82: Budget | E82: Income | F82: Expense | G82: Net | I82: Income | J82: Expense | K82: Net | O82: O/U Budget
B83: PTO Expenses
B84: PTO Storage Locker | C84: =90*12 -> 1080 | E84: 0 | F84: =75+12.1+75+75+75+75+75+75+79+79+79+79+79 -> 932.1 | G84: =F84-E84 -> 932.1 | I84: =E84 -> 0 | J84: =F84 -> 932.1 | K84: =G84 -> 932.1 | O84: =C84-K84 -> 147.9
B85: Scholarships (Assistance for Families in Need) | C85: 800 | E85: 0 | F85: =28.5+40.5+30 -> 99 | G85: 99 | I85: 0 | J85: =F85 -> 99 | K85: 99 | M85: =-C85+K85 -> -701 | O85: 701
B86: Tax Prep & Application Prep Fees | C86: 650 | E86: 0 | F86: 0 | G86: 0 | I86: 0 | J86: 0 | K86: 0 | M86: =-C86+K86 -> -650 | O86: 650
B87: PTO General Supplies | C87: 300 | E87: 0 | F87: 0 | G87: 0 | I87: 0 | J87: 0 | K87: 0 | M87: =-C87+K87 -> -300 | O87: 300
B88: Signs for Annual Events | C88: 200 | E88: 0 | F88: 0 | G88: 0 | I88: 0 | J88: 0 | K88: 0 | M88: =-C88+K88 -> -200 | O88: 200
B89: Memorials | C89: 200 | E89: 0 | F89: =50+105.95+4.27 -> 160.22 | G89: 160.22 | I89: 0 | J89: 160.22 | K89: 160.22 | M89: =-C89+K89 -> -39.78 | O89: 39.78
B90: Bank Fees/Charges | C90: 500 | E90: 0 | F90: =0.16+0.19+5.14+11.1 -> 16.59 | G90: 16.59 | I90: 0 | J90: 16.59 | K90: 16.59 | M90: 0 | O90: 483.41
B91: Website Fees - (July 2014 - June 2015) | C91: 100 | E91: 0 | F91: =7.99+7.99+7.99+7.99+8.99+8.99-5.99+8.99+8.99+8.99+8.99+8.99+8.99 -> 97.89 | G91: 97.89 | I91: 0 | J91: 97.89 | K91: 97.89 | O91: 2.11
B92: PTO Meetings | C92: 200 | E92: 0 | F92: =40+30 -> 70 | G92: 70 | I92: 0 | J92: 70 | K92: 70 | M92: =-C92+K92 -> -130 | O92: 130
B93: PTO Expenses Subtotal | C93: =SUM(C84:C92) -> 4030 | E93: =SUM(E84:E92) -> 0 | F93: =SUM(F84:F92) -> 1375.8 | G93: =SUM(G84:G92) -> 1375.8 | I93: =E93 -> 0 | J93: =F93 -> 1375.8 | K93: =G93 -> 1375.8 | M93: =SUM(M85:M92) -> -2020.78 | O93: =SUM(O84:O92) -> 2654.2
B95: School Support & Expenses - Grand Total | C95: =C59+C80+C93 -> 42600 | E95: =E80+E93+E59 -> 0 | F95: =F80+F93+F59 -> 25618.72 | G95: =G80+G93+G59 -> 25618.72 | I95: =I80+I93+I59 -> 0 | J95: =J80+J93+J59 -> 25618.72 | K95: =K80+K93+K59 -> 25618.72 | M95: =M80+M93+M59 -> -13005.36 | O95: =O80+O93+O59 -> 18095
B97: Bank Balance | C97: 26162.46
B98: Uncleared Checks | C98: 2399.42
B99: Current PTO Balance as of 6/30/15 | C99: =C97-C98 -> 23763.04
